fUST/lending_fUST_20251026
["ID","MTS","AMOUNT","RATE_DAILY","PERIOD"]
[392404951,1761435879924,-10000.01,0.00014823,2]
[392404952,1761435879986,-10000.01,0.00014823,2]
[392404953,1761435880085,-10000.01,0.00014823,2]
[392404954,1761435880190,-10000.01,0.00014823,2]
[392404955,1761435880246,-10000.01,0.00014823,2]
[392404956,1761435880334,-10000.01,0.00014823,2]
[392404957,1761435880521,-10000.01,0.00014823,2]
[392404958,1761435880972,-10000.01,0.00014823,2]
[392404959,1761435881060,-10000.01,0.00014823,2]
[392404960,1761435881216,-10000.01,0.00014823,2]
[392404961,1761435881456,-10000.01,0.00014823,2]
[392404962,1761435881709,-10000.01,0.00014823,2]
[392404963,1761435882055,-10000.01,0.00014823,2]
[392404964,1761435882270,-10000.01,0.00014823,2]
[392404966,1761436079423,-168.956402,0.00014239,2]
[392404967,1761436081565,-207.81920545,0.00014239,2]
[392404968,1761436092437,2430.52552617,0.00013956,2]
[392404969,1761436094358,1491.478051,0.00013913,2]
[392404970,1761436114615,1541.71783507,0.00013956,2]
[392405004,1761436231989,-1094.46593539,0.00014097,2]
[392405006,1761436232000,-379.5741512,0.00014097,2]
[392405010,1761436232062,-956.48543958,0.00014097,2]
[392405011,1761436232072,-500.0,0.000142,2]
[392405012,1761436232081,-2222.70632072,0.00014239,2]
[392405013,1761436232090,-161.62679802,0.000145,2]
[392405014,1761436232104,-300.0,0.00014673,2]
[392405015,1761436232113,-300.0,0.00014673,2]
[392405016,1761436232122,-300.0,0.00014673,2]
[392405017,1761436232131,-300.0,0.00014673,2]
[392405018,1761436232142,-300.0,0.00014673,2]
[392405019,1761436232151,-1200.0,0.00014673,2]
[392405020,1761436232161,-1200.0,0.00014674,2]
[392405021,1761436232171,-315.67822076,0.00014821,2]
[392405022,1761436232182,-221.08009169,0.00014821,2]
[392405023,1761436232192,-500.0,0.00014821,2]
[392405024,1761436232203,-241.40289297,0.00014821,2]
[392405025,1761436232212,-36404.1672483,0.00014822,2]
[392405026,1761436232223,-500.0,0.00014822,2]
[392405027,1761436232232,-500.0,0.00014822,2]
[392405028,1761436232242,-500.0,0.00014822,2]
[392405029,1761436232252,-500.0,0.00014822,2]
[392405030,1761436232264,-500.0,0.00014822,2]
[392405031,1761436232276,-411.99433503,0.00014822,2]
[392405032,1761436232287,-373.1835366,0.00014822,2]
[392405033,1761436232297,-4304.48864137,0.00014823,2]
[392405034,1761436234841,168.956402,0.00013956,2]
[392405094,1761436238302,-6068.15673516,0.00014823,2]
[392405317,1761436240663,-271.35708111,0.00014823,2]
[392405320,1761436240677,-614.8492,0.00014823,2]
[392405348,1761436240947,-3e-08,0.00014823,2]
[392405583,1761436243458,-2495.8,0.00014823,2]
[392405940,1761436285758,1383.2734539,0.00014426,2]
[392405941,1761436302133,-3064.69407441,0.00014528,2]
[392405942,1761436317062,-3064.69407441,0.00014675,2]
[392405943,1761436323007,661.33521478,0.00014673,2]
[392405944,1761436332166,-500.0,0.00014821,2]
[392405945,1761436332260,-161.33521478,0.00014821,2]
[392405946,1761436345226,300.0,0.00014674,2]
[392405947,1761436347355,-300.0,0.00014822,2]
[392405948,1761436349883,-303.45128676,0.00014823,2]
[392405949,1761436359079,1200.0,0.00014822,2]
[392405950,1761436367971,549.20886981,0.00014675,2]
[392405951,1761436382623,300.0,0.00014822,2]
[392405952,1761436384083,500.0,0.00014821,2]
[392405953,1761436384329,500.0,0.00014821,2]
[392405954,1761436384598,500.0,0.00014822,2]
[392405955,1761436442382,300.0,0.00014822,2]
[392405956,1761436455579,-339.96783866,0.00014823,2]
[392405957,1761436456352,576.9253993,0.00014166,2]
[392405958,1761436457641,-202.47780931,0.00014823,2]
[392405959,1761436501390,300.0,0.00014822,2]
[392405960,1761436501871,300.0,0.00014822,2]
[392405961,1761436502246,300.0,0.00014822,2]
[392405962,1761436502630,300.0,0.00014822,2]
[392405963,1761436502786,300.0,0.00014822,2]
[392405964,1761436502867,1200.0,0.00014822,2]
[392405965,1761436506720,-529.26706221,0.00014823,2]
[392405966,1761436506970,-10000.01,0.00014823,2]
[392405967,1761436507282,-599.3983739,0.00014823,2]
[392405968,1761436521744,-395.3470981,0.00014968,2]
[392405970,1761436570143,-500.0,0.000151,2]
[392405971,1761436585148,-196.0,0.0001511,2]
[392405973,1761436600340,-332.72106161,0.00015111,2]
[392405974,1761436653438,343.64601407,0.000151,2]
[392405975,1761436661321,-500.0,0.0001517,2]
[392405976,1761436675046,9000.01,0.0001517,2]
[392405977,1761436675123,999.99,0.0001517,2]
[392405978,1761436676404,-300.0,0.00015194,2]
[392405979,1761436676479,-1200.0,0.00015194,2]
[392405980,1761436682260,7000.01,0.0001517,2]
[392405981,1761436682340,2999.99,0.0001517,2]
[392405982,1761436682555,300.0,0.00015194,2]
[392405983,1761436689379,6700.02,0.00015194,2]
[392405984,1761436689457,3299.98,0.00015194,2]
[392405985,1761436691611,-1000.0,0.00015195,2]
[392405986,1761436691709,-1000.0,0.00015195,2]
[392405987,1761436691796,-1000.0,0.00015195,2]
[392405988,1761436691877,-1008.6548895,0.00015195,2]
[392405989,1761436691976,-213.96859442,0.00015195,2]
[392405990,1761436694484,-242.48994015,0.000152,2]
[392405991,1761436696322,1554.76303216,0.00015194,2]
[392405992,1761436696395,8445.23696784,0.00015194,2]
[392405993,1761436703051,1554.77303216,0.00015195,2]
[392405994,1761436703139,8445.22696784,0.00015195,2]
[392405995,1761436706709,-69.51005985,0.000152,2]
[392405996,1761436709372,-367.68933407,0.00015202,2]
[392405997,1761436709522,9860.9898803,0.00015195,2]
[392405998,1761436709596,139.0101197,0.00015195,2]
[392405999,1761436712563,-303.45128676,0.00015201,2]
[392406000,1761436712596,-78.58523372,0.00015201,2]
[392406001,1761436715174,-224.55477525,0.00015201,2]
[392406002,1761436719193,-196.85999103,0.00015201,2]
[392406003,1761436719224,-103.14000897,0.00015201,2]
[392406004,1761436724705,-164.77441272,0.00015201,2]
[392406005,1761436725690,10000.0,0.000152,2]
[392406006,1761436725892,-182.77241854,0.00015201,2]
[392406007,1761436727628,-49.31315977,0.00015201,2]
[392406008,1761436727658,-142.34846906,0.00015201,2]
[392406009,1761436733111,0.01,0.00015201,2]
[392406010,1761436733187,9999.99,0.00015201,2]
[392406011,1761436736997,-357.65153094,0.00015201,2]
[392406012,1761436737106,-500.0,0.00015201,2]
[392406013,1761436737210,-250.0,0.00015201,2]
[392406014,1761436737315,-224.55477525,0.00015201,2]
[392406015,1761436737402,-500.0,0.00015201,2]
[392406016,1761436737499,-288.39603452,0.00015201,2]
[392406017,1761436737594,-229.78375791,0.00015201,2]
[392406018,1761436748919,5299.23780276,0.00015201,2]
[392406019,1761436748996,3861.76219724,0.00015201,2]
[392406020,1761436752581,-300.0,0.00015201,2]
[392406021,1761436761475,-9700.01,0.00015202,2]
[392406022,1761436761697,-10000.01,0.00015202,2]
[392406023,1761436761950,-10000.01,0.00015202,2]
[392406024,1761436762185,-10000.01,0.00015202,2]
[392406025,1761436762416,-67.73933407,0.00015202,2]
[392406026,1761436762692,-9864.53133186,0.00015202,2]
[392406027,1761436762802,-1000.10001,0.00015203,2]
[392406028,1761436762912,-500.0,0.00015203,2]
[392406029,1761436763002,-500.0,0.00015203,2]
[392406030,1761436763091,-300.0,0.00015213,2]
[392406031,1761436763195,-300.0,0.00015213,2]
[392406032,1761436763295,-300.0,0.00015213,2]
[392406033,1761436763395,-300.0,0.00015213,2]
[392406034,1761436763489,-300.0,0.00015213,2]
[392406035,1761436763582,-300.0,0.00015213,2]
[392406036,1761436763676,-300.0,0.00015213,2]
[392406037,1761436763775,-300.0,0.00015213,2]
[392406038,1761436763867,-300.0,0.00015213,2]
[392406039,1761436763964,-299.80998,0.00015213,2]
[392406040,1761436764244,-0.19002,0.00015213,2]
[392406041,1761436764336,-300.0,0.00015213,2]
[392406042,1761436764430,-300.0,0.00015213,2]
[392406043,1761436764527,-300.0,0.00015213,2]
[392406044,1761436764629,-300.0,0.00015213,2]
[392406045,1761436764718,-300.0,0.00015213,2]
[392406046,1761436764810,-600.0,0.00015213,2]
[392406047,1761436764916,-168.0,0.0001522,2]
[392406048,1761436765009,-168.0,0.00015269,2]
[392406049,1761436766802,-0.19002,0.00015372,2]
[392406050,1761436766877,-5127.62996,0.00015372,2]
[392406051,1761436766959,-10000.01,0.00015372,2]
[392406052,1761436768066,-10000.01,0.00015372,2]
[392406053,1761436768311,-10000.01,0.00015372,2]
[392406054,1761436768582,-10000.01,0.00015372,2]
[392406055,1761436773655,-10000.01,0.00015372,2]
[392406056,1761436774158,-10000.01,0.00015372,2]
[392406057,1761436774408,-10000.01,0.00015372,2]
[392406058,1761436774704,-196.0,0.0001511,2]
[392406059,1761436774878,-196.0,0.0001514,2]
[392406060,1761436774888,-9412.01,0.00015372,2]
[392406061,1761436792011,-684.57132006,0.00015,2]
[392406062,1761436792098,-8630.86735988,0.00015,2]
[392406063,1761436803979,5270.08874427,0.00015,2]
[392406064,1761436907393,-300.0,0.00015199,2]
[392406065,1761436922420,300.0,0.00015199,2]
[392406066,1761436954780,500.0,0.00015199,2]
[392406067,1761436954877,500.0,0.00015199,2]
[392406068,1761436954972,416.13420126,0.00015199,2]
[392406069,1761436955076,500.0,0.00015199,2]
[392406070,1761436955179,500.0,0.00015199,2]
[392406071,1761436955276,500.0,0.00015199,2]
[392406072,1761436955379,500.0,0.00015199,2]
[392406073,1761436955480,500.0,0.00015199,2]
[392406074,1761436955588,500.0,0.00015199,2]
[392406075,1761436955684,500.0,0.00015199,2]
[392406076,1761436955779,500.0,0.00015199,2]
[392406077,1761436955887,500.0,0.00015199,2]
[392406078,1761436955984,500.0,0.00015199,2]
[392406079,1761436956081,500.0,0.00015199,2]
[392406080,1761436956187,500.0,0.00015199,2]
[392406081,1761436956284,500.0,0.00015199,2]
[392406082,1761436956383,500.0,0.00015199,2]
[392406083,1761436956482,500.0,0.00015199,2]
[392406084,1761436956595,500.0,0.00015199,2]
[392406085,1761436956696,500.0,0.00015199,2]
[392406086,1761436956798,83.87579874,0.00015199,2]
[392406087,1761436956883,416.12420126,0.00015199,2]
[392406088,1761436956982,500.0,0.00015199,2]
[392406089,1761436957104,500.0,0.00015199,2]
[392406090,1761436957207,544.87103316,0.00015199,2]
[392406091,1761436957306,500.0,0.00015199,2]
[392406092,1761436957409,500.0,0.00015199,2]
[392406093,1761436957506,500.0,0.00015199,2]
[392406094,1761436957600,500.0,0.00015199,2]
[392406095,1761436957698,500.0,0.00015199,2]
[392406096,1761436957799,454.57765644,0.00015199,2]
[392406097,1761436957900,500.0,0.00015199,2]
[392406098,1761436957992,500.0,0.00015199,2]
[392406099,1761436958088,500.0,0.00015199,2]
[392406100,1761436958191,467.49414467,0.00015199,2]
[392406101,1761436958303,500.0,0.00015199,2]
[392406102,1761436958418,500.0,0.00015199,2]
[392406103,1761436958525,500.0,0.00015199,2]
[392406104,1761436958645,500.0,0.00015199,2]
[392406105,1761436958752,500.0,0.00015199,2]
[392406106,1761436958874,200.0,0.00015199,2]
[392406107,1761436958991,416.94296447,0.00015199,2]
[392406108,1761436959079,83.05703553,0.00015199,2]
[392406109,1761436959209,500.0,0.00015199,2]
[392406110,1761436959322,500.0,0.00015199,2]
[392406111,1761436959429,466.80745671,0.00015199,2]
[392406112,1761436959527,500.0,0.00015199,2]
[392406113,1761436959659,500.0,0.00015199,2]
[392406114,1761436959771,500.0,0.00015199,2]
[392406115,1761436959876,500.0,0.00015199,2]
[392406116,1761436959991,500.0,0.00015199,2]
[392406117,1761436960166,500.0,0.00015199,2]
[392406118,1761436960283,500.0,0.00015199,2]
[392406119,1761436960398,500.0,0.00015199,2]
[392406120,1761436960488,500.0,0.00015199,2]
[392406121,1761436960613,500.0,0.00015199,2]
[392406122,1761436960978,1200.0,0.00015198,2]
[392406123,1761436968208,-500.0,0.00015201,2]
[392406124,1761436976839,500.0,0.00015199,2]
[392406125,1761436976941,500.0,0.00015199,2]
[392406126,1761436977044,500.0,0.00015199,2]
[392406127,1761436977141,500.0,0.00015199,2]
[392406128,1761436977237,500.0,0.00015199,2]
[392406129,1761436977336,500.0,0.00015199,2]
[392406130,1761436977499,500.0,0.00015199,2]
[392406131,1761436977596,500.0,0.00015199,2]
[392406132,1761436977885,300.0,0.00015199,2]
[392406133,1761436977987,500.0,0.00015199,2]
[392406134,1761436978238,500.0,0.00015199,2]
[392406135,1761436978636,500.0,0.00015199,2]
[392406136,1761436979162,500.0,0.00015199,2]
[392406137,1761436979524,500.0,0.00015199,2]
[392406138,1761436979838,500.0,0.00015199,2]
[392406139,1761436980372,500.0,0.00015199,2]
[392406140,1761436980710,272.16481839,0.00015199,2]
[392406141,1761436981057,500.0,0.00015199,2]
[392406142,1761436981454,427.84518161,0.00015199,2]
[392406143,1761436981552,72.15481839,0.00015199,2]
[392406144,1761436981653,243.05955676,0.00015199,2]
[392406145,1761436981765,500.0,0.00015199,2]
[392406146,1761436982060,500.0,0.00015199,2]
[392406147,1761436982170,500.0,0.00015199,2]
[392406148,1761436982286,500.0,0.00015199,2]
[392406149,1761436982391,500.0,0.00015199,2]
[392406150,1761436982493,500.0,0.00015199,2]
[392406151,1761436982597,500.0,0.00015199,2]
[392406152,1761436982715,500.0,0.00015199,2]
[392406153,1761436985607,999.0,0.00014342,2]
[392406154,1761436986536,-500.0,0.00015202,2]
[392406155,1761436989124,500.0,0.00015199,2]
[392406156,1761436989244,199.70946736,0.00015199,2]
[392406157,1761436990727,500.0,0.00015199,2]
[392406158,1761436990914,500.0,0.00015199,2]
[392406159,1761436991033,2034.80968811,0.00015145,2]
[392406160,1761436996648,500.0,0.00015199,2]
[392406161,1761436996747,500.0,0.00015199,2]
[392406162,1761436997107,300.0,0.000152,2]
[392406163,1761437004579,-500.0,0.00015203,2]
[392406164,1761437004675,-500.0,0.00015203,2]
[392406165,1761437004755,-500.0,0.00015203,2]
[392406166,1761437007271,300.0,0.000152,2]
[392406167,1761437017673,300.0,0.000152,2]
[392406169,1761437027776,300.0,0.000152,2]
[392406170,1761437038585,300.0,0.000152,2]
[392406171,1761437054592,500.0,0.00015202,2]
[392406172,1761437055075,500.0,0.00015202,2]
[392406173,1761437055179,621.94419722,0.00015202,2]
[392406174,1761437068716,500.0,0.00015202,2]
[392406175,1761437068998,500.0,0.00015202,2]
[392406176,1761437069249,500.0,0.00015202,2]
[392406178,1761437070425,168.9564049,7.184e-05,2]
[392406179,1761437136968,6109.10939788,0.00014349,2]
[392406180,1761437137057,1273.28834832,0.00014349,2]
[392406181,1761437192165,4831.868709,0.00014359,2]
[392406182,1761437255797,500.0,0.00015202,2]
[392406183,1761437256039,500.0,0.00015202,2]
[392406184,1761437256276,272.7494695,0.00015202,2]
[392406185,1761437266747,2622.10347318,0.00014357,2]
[392406186,1761437266825,6546.05056142,0.00014357,2]
[392406187,1761437266868,3020.85,0.0003,120]
[392406188,1761437268029,-1200.0,0.00015281,2]
[392406189,1761437268052,-300.0,0.00015298,2]
[392406190,1761437268074,-300.0,0.00015299,2]
[392406191,1761437268097,-300.0,0.00015299,2]
[392406192,1761437268118,-1200.0,0.00015299,2]
[392406193,1761437268140,-11225.44329651,0.000153,2]
[392406194,1761437268163,-700.2,0.00015362,3]
[392406195,1761437268184,-213.96859442,0.00015363,2]
[392406196,1761437268206,-510.84863054,0.00015371,2]
[392406197,1761437268227,-201.87722417,0.00015371,2]
[392406198,1761437268251,-504.98567035,0.00015371,2]
[392406199,1761437268276,-272.73085072,0.00015371,2]
[392406200,1761437268301,-607.42305075,0.00015371,2]
[392406201,1761437268330,-529.72157163,0.00015371,2]
[392406202,1761437268360,-500.0,0.00015371,2]
[392406203,1761437268391,-500.0,0.00015371,2]
[392406204,1761437268422,-500.0,0.00015371,2]
[392406205,1761437268453,-500.0,0.00015371,2]
[392406206,1761437268482,-194.30595568,0.00015371,2]
[392406207,1761437268507,-543.64601407,0.00015372,2]
[392406208,1761437268531,-568.22,0.00015372,2]
[392406209,1761437268558,-178626.62914116,0.00015372,2]
[392406210,1761437288497,10000.0,0.000301,120]
[392406211,1761437296471,1000.0,0.0003,120]
[392406212,1761437370934,6000.0,0.0003,120]
[392406236,1761437432271,-366.7851463,0.000153,2]
[392406274,1761437432527,-1195.00558352,0.000153,2]
[392406277,1761437432536,-213.96859442,0.00015363,2]
[392406280,1761437432545,-180.0,0.00015369,2]
[392406283,1761437432554,-300.0,0.00015369,2]
[392406286,1761437432563,-300.0,0.00015369,2]
[392406289,1761437432572,-1200.0,0.00015369,2]
[392406292,1761437432581,-156.93201907,0.0001537,2]
[392406295,1761437432590,-500.0,0.0001537,2]
[392406297,1761437432599,-226.45836672,0.0001537,2]
[392406299,1761437432608,-300.89784163,0.0001537,2]
[392406301,1761437432617,-51.72062264,0.0001537,2]
[392406303,1761437432629,-448.27937736,0.0001537,2]
[392406305,1761437432638,-500.0,0.0001537,2]
[392406307,1761437432647,-460.55287158,0.0001537,2]
[392406309,1761437432657,-480.141929,0.0001537,2]
[392406311,1761437432666,-500.0,0.0001537,2]
[392406313,1761437432675,-569.43059557,0.0001537,2]
[392406315,1761437432689,-500.0,0.0001537,2]
[392406317,1761437432698,-174.38117728,0.0001537,2]
[392406319,1761437432707,-23196.91442706,0.00015371,2]
[392406321,1761437432716,-882.88251238,0.00015371,2]
[392406323,1761437432727,-162.70322137,0.00015372,2]
[392406325,1761437432736,-55784.87525444,0.00015372,2]
[392406617,1761437440622,-3e-08,0.00015372,2]
[392406620,1761437460667,4900.59823512,0.000191,6]
[392406621,1761437498799,3453.95943858,0.00014753,2]
[392406622,1761437498884,10000.01,0.00014753,2]
[392406623,1761437498966,10000.01,0.00014753,2]
[392406624,1761437499049,4435.96106082,0.00014753,2]
[392406625,1761437506130,250.0,0.00014554,2]
[392406626,1761437550269,5000.0,0.0003,120]
[392406627,1761437596917,157.6976018,0.00014739,2]
[392406628,1761437604509,2034.80968811,0.00015193,2]
[392406629,1761437608213,500.0,0.00015202,2]
[392406630,1761437716499,-1366.56688854,0.000153,2]
[392406631,1761437770891,2469.894306,0.00014412,2]
[392406632,1761437841569,164.805164,0.00015068,2]
[392406633,1761437844073,281.27751759,0.00014798,2]
[392406634,1761437846129,506.29953167,0.00014798,2]
[392406635,1761437954761,305.34800463,0.00014798,2]
[392406636,1761437956703,549.62640834,0.00014798,2]
[392406637,1761438009939,215.2236888,0.00014403,2]
[392406638,1761438127431,2034.80968811,0.00015278,2]
[392406639,1761438139817,161.35184509,0.00014798,2]
[392406640,1761438141956,290.43332116,0.00014798,2]
[392406641,1761438205619,287.80674753,0.00014401,2]
[392406642,1761438205699,6856.42166347,0.00014401,2]
[392406646,1761438253275,2804.4911925,0.00014515,2]
[392406647,1761438257120,171.0367072,0.00014798,2]
[392406648,1761438258972,168.06043683,0.00014798,2]
[392406649,1761438259046,139.80563612,0.00014798,2]
[392406650,1761438269351,1293.371726,0.00013699,2]
[392406652,1761438286086,1195.74602749,0.00015304,2]
[392406653,1761438295128,1950.41,0.00030137,120]
[392406657,1761438314256,1000.0,0.00030137,120]
[392406658,1761438403126,162.23370265,0.00014,2]
[392406659,1761438412853,202.10665328,0.00014798,2]
[392406660,1761438414985,363.7919759,0.00014798,2]
[392406661,1761438416909,646.74129048,0.00014798,2]
[392406662,1761438418660,1009.52273312,0.00014798,2]
[392406663,1761438420650,315.33199388,0.00014798,2]
[392406664,1761438422512,567.59758898,0.00014798,2]
[392406665,1761438424742,1009.06238041,0.00014798,2]
[392406666,1761438427004,1576.65996939,0.00014798,2]
[392406667,1761438429409,2268.11996557,0.00014798,2]
[392406668,1761438511758,547.6750499,0.00015,2]
[392406669,1761438521154,261.33651974,0.00015,2]
[392406670,1761438536232,216.32860126,0.00014798,2]
[392406671,1761438538394,389.39148226,0.00014798,2]
[392406672,1761438540464,692.25152403,0.00014798,2]
[392406673,1761438542666,136.19892508,0.00014798,2]
[392406674,1761438542751,944.3624382,0.00014798,2]
[392406675,1761438544619,165.74510234,0.00014798,2]
[392406724,1761438632615,-1200.0,0.00015371,2]
[392406726,1761438632624,-300.0,0.00015371,2]
[392406728,1761438632634,-300.0,0.00015371,2]
[392406730,1761438632643,-274.87097782,0.00015371,2]
[392406732,1761438632655,-925.12902218,0.00015371,2]
[392406734,1761438632664,-233.39442541,0.00015372,2]
[392406737,1761438632675,-766.60557459,0.00015372,2]
[392406739,1761438632685,-1000.0,0.00015372,2]
[392406741,1761438632694,-1000.0,0.00015372,2]
[392406742,1761438632703,-1000.0,0.00015372,2]
[392406743,1761438632713,-1000.0,0.00015372,2]
[392406744,1761438632722,-1000.0,0.00015372,2]
[392406745,1761438632731,-13.7799184,0.00015394,3]
[392406746,1761438632746,-728.24780001,0.00015394,3]
[392406766,1761438640524,-473.85228159,0.00015394,3]
[392406767,1761438640534,-607.94,0.00015394,3]
[392406768,1761438640543,-303.97,0.00015394,3]
[392406769,1761438640551,-151.98,0.00015394,3]
[392406770,1761438640560,-455.99,0.00015394,3]
[392406771,1761438640570,-213.96859442,0.00015395,2]
[392406772,1761438640578,-500.0,0.000154,2]
[392406773,1761438640587,-500.0,0.00015402,2]
[392406774,1761438640596,-500.0,0.00015402,2]
[392406775,1761438640605,-500.0,0.00015402,2]
[392406776,1761438640615,-500.0,0.00015402,2]
[392406777,1761438640624,-138.83772552,0.00015402,2]
[392406778,1761438640635,-341.22010289,0.00015402,2]
[392406779,1761438640646,-19.94217159,0.00015402,2]
[392406780,1761438640655,-500.0,0.00015402,2]
[392406781,1761438640664,-408.90692996,0.00015402,2]
[392406782,1761438640674,-500.0,0.00015402,2]
[392406783,1761438640684,-500.0,0.00015402,2]
[392406784,1761438640694,-500.0,0.00015402,2]
[392406785,1761438640703,-500.0,0.00015402,2]
[392406786,1761438640712,-500.0,0.00015402,2]
[392406787,1761438640721,-500.0,0.00015402,2]
[392406788,1761438640730,-500.0,0.00015402,2]
[392406789,1761438640740,-4014.65551109,0.00015403,2]
[392406790,1761438640751,-5474.88146846,0.00015403,2]
[392406791,1761438640759,-1046.27777408,0.00015403,2]
[392406792,1761438640768,-357.59404137,0.00015403,2]
[392406793,1761438640777,-73.66966329,0.00015404,2]
[392406805,1761438645046,-6255.62288965,0.00015404,2]
[392406806,1761438645196,-4670.09480696,0.00015404,2]
[392406811,1761438646494,-724.11173951,0.00015404,2]
[392406812,1761438646619,-251.53964314,0.00015404,2]
[392406814,1761438875679,800.0,0.00015148,2]
[392406815,1761439026813,-300.0,0.00015329,2]
[392406816,1761439055603,800.0,0.00014629,2]
[392406817,1761439055648,800.0,0.00014935,2]
[392406818,1761439057957,1200.0,0.00015329,2]
[392406819,1761439082364,300.0,0.00015329,2]
[392406820,1761439098684,168.0,0.00015022,2]
[392406821,1761439109303,168.0,0.00015089,2]
[392406822,1761439111866,9364.01,0.00015319,2]
[392406823,1761439111891,10000.01,0.00015319,2]
[392406824,1761439122555,-168.0,0.00015195,2]
[392406825,1761439134635,-5379.75430377,0.00015319,2]
[392406826,1761439140797,-2034.80968811,0.00015167,2]
[392406827,1761439140827,-961.34119559,0.00015288,2]
[392406828,1761439140892,-4007.7082326,0.00015319,2]
[392406829,1761439152934,-10000.01,0.00015319,2]
[392406830,1761439155966,-10000.01,0.00015319,2]
[392406831,1761439171120,-10000.01,0.00015319,2]
[392406832,1761439174351,-10000.01,0.00015319,2]
[392406833,1761439180785,-196.0,0.0001511,2]
[392406834,1761439180813,-196.0,0.00015144,2]
[392406835,1761439180842,-196.0,0.00015179,2]
[392406836,1761439180868,-196.0,0.00015213,2]
[392406837,1761439180898,-196.0,0.00015247,2]
[392406838,1761439180927,-196.0,0.00015282,2]
[392406839,1761439180955,-196.0,0.00015316,2]
[392406840,1761439181109,-7256.01,0.00015319,2]
[392406841,1761439186564,-10000.01,0.00015319,2]
[392406842,1761439190587,-10000.01,0.00015319,2]
[392406843,1761439197248,-1000.0,0.00014372,2]
[392406844,1761439197287,-8000.01,0.00015304,2]
[392406845,1761439202766,-300.0,0.00015303,2]
[392406846,1761439202810,-9400.01,0.00015304,2]
[392406847,1761439208858,-1200.0,0.00015303,2]
[392406848,1761439208892,-7600.01,0.00015304,2]
[392406849,1761439215080,-1200.0,0.0001515,2]
[392406850,1761439220247,5000.0,0.00015226,2]
[392406851,1761439228807,2600.01,0.00015226,2]
[392406852,1761439228827,857.85087685,0.00015226,2]
[392406853,1761439236619,3800.0,0.00015226,2]
[392406854,1761439278471,2000.0,0.00030137,120]
[392406855,1761439305291,5342.15912315,0.00015226,2]
[392406856,1761439305315,4657.84087685,0.00015226,2]
[392406857,1761439314313,456.47417074,0.00014563,2]
[392406858,1761439316325,821.65350733,0.00014563,2]
[392406859,1761439318625,1460.71734637,0.00014563,2]
[392406860,1761439320568,2282.3708537,0.00014563,2]
[392406861,1761439320597,320.95324501,0.00015226,2]
[392406862,1761439320619,781.04675499,0.00015226,2]
[392406863,1761439323000,3286.61402933,0.00014563,2]
[392406864,1761439325210,4468.97342638,0.00014563,2]
[392406865,1761439327425,268.00715929,0.00014602,2]
[392406866,1761439442519,364.91019432,0.00014563,2]
[392406867,1761439444846,656.83834978,0.00014563,2]
[392406868,1761439446876,1167.71262183,0.00014563,2]
[392406869,1761439449138,1824.55097161,0.00014563,2]
[392406870,1761439451023,2627.35339912,0.00014563,2]
[392406871,1761439452920,3358.64446334,0.00014563,2]
[392406872,1761439452942,213.89932111,0.00014563,2]
[392406873,1761439456698,160.0,0.000191,6]